[Event "3rd FIDE WCCC Blitz G10 2019"]
[Site "Minsk"]
[Date "2019.08.18"]
[Round "9.3"]
[White "Mai, Hieu Linh"]
[Black "Shukhman, Anna"]
[Result "1/2-1/2"]
[ECO "B24"]
[WhiteElo "1344"]
[BlackElo "1806"]
[Annotator "NA"]
[PlyCount "104"]
[EventDate "2019.08.18"]
[EventType "swiss"]
[EventCountry "BLR"]
[SourceTitle "playchess.com"]
[Source "ChessBase"]
[SourceQuality "1"]
[TimeControl "300+2"]

1. e4 {[%emt 0:00:00]} c5 {[%emt 0:00:00]} 2. Nc3 {[%emt 0:00:00]} Nc6 {[%emt 0:00:01]} 3. g3 {[%emt 0:00:01]} g6 {[%emt 0:00:01]} 4. Bg2 {[%emt 0:00:01]} Bg7 {[%emt 0:00:01]} 5. d3 {[%emt 0:00:01]} e5 {[%emt 0:00:02]} 6. Be3 {[%emt 0:00:03]} d6 {[%emt 0:00:01]} 7. Qd2 {[%emt 0:00:01]} Nge7 {[%emt 0:00:02]} 8. Bh6 {[%emt 0:00:02]} Bf6 {[%emt 0:00:26]} 9. Nf3 {[%emt 0:00:49]} a6 {[%emt 0:00:09]} 10. Bg5 {[%emt 0:00:09]} Bg7 {[%emt 0:00:12]} 11. Bh6 {[%emt 0:00:04]} Bf6 {[%emt 0:00:36]} 12. Bg5 {[%emt 0:00:59]} Bxg5 {[%emt 0:00:18]} 13. Qxg5 {[%emt 0:00:10]} Ng8 {[%emt 0:00:20]} 14. Nd5 {[%emt 0:00:22]} h6 {[%emt 0:00:13]} 15. Qxd8+ {[%emt 0:00:07]} Kxd8 {[%emt 0:00:02]} 16. Nd2 {[%emt 0:00:17]} Nge7 {[%emt 0:00:10]} 17. Nc4 {[%emt 0:00:15]} Nxd5 {[%emt 0:00:09]} 18. exd5 {[%emt 0:00:02]} Nd4 {[%emt 0:00:03]} 19. Nxd6 {[%emt 0:00:28]} Ke7 {[%emt 0:00:10]} 20. Nxc8+ {[%emt 0:00:07]} Raxc8 {[%emt 0:00:02]} 21. Kd2 {[%emt 0:00:03]} Kd6 {[%emt 0:00:02]} 22. g4 {[%emt 0:00:04]} Nb5 23. a4 Nc7 {[%emt 0:00:21]} 24. c4 {[%emt 0:00:12]} Ne8 {[%emt 0:00:08]} 25. Rhf1 {[%emt 0:00:03]} g5 {[%emt 0:00:03]} 26. h3 {[%emt 0:00:12]} Nf6 {[%emt 0:00:09]} 27. Rab1 {[%emt 0:00:02]} a5 {[%emt 0:00:02]} 28. Rfe1 {[%emt 0:00:08]} Rce8 {[%emt 0:00:10]} 29. Be4 {[%emt 0:00:03]} Nd7 {[%emt 0:00:12]} 30. Re2 {[%emt 0:00:06]} f6 {[%emt 0:00:02]} 31. Rbe1 Nb8 32. Bg6 {[%emt 0:00:07]} Re7 {[%emt 0:00:10]} 33. Bf5 Na6 {[%emt 0:00:05]} 34. Kc3 {[%emt 0:00:06]} Nc7 {[%emt 0:00:06]} 35. b3 {[%emt 0:00:03]} b6 {[%emt 0:00:03]} 36. Be4 {[%emt 0:00:04]} Ne8 {[%emt 0:00:08]} 37. Re3 {[%emt 0:00:01]} Ng7 {[%emt 0:00:07]} 38. Rf3 {[%emt 0:00:01]} Rf8 {[%emt 0:00:02]} 39. Bf5 {[%emt 0:00:01]} Rc7 {[%emt 0:00:25]} 40. Rh1 {[%emt 0:00:05]} Nxf5 {[%emt 0:00:26]} 41. Rxf5 {[%emt 0:00:02]} h5 {[%emt 0:00:10]} 42. gxh5 {[%emt 0:00:09]} Rh7 {[%emt 0:00:02]} 43. Rf3 {[%emt 0:00:01]} Rxh5 {[%emt 0:00:02]} 44. Rg1 {[%emt 0:00:02]} Rf7 {[%emt 0:00:09]} 45. Rg4 {[%emt 0:00:11]} f5 {[%emt 0:00:05]} 46. Rg1 {[%emt 0:00:02]} f4 {[%emt 0:00:03]} 47. Kd2 {[%emt 0:00:08]} Rg7 {[%emt 0:00:02]} 48. Rg4 {[%emt 0:00:02]} Rh8 {[%emt 0:00:03]} 49. Rg1 {[%emt 0:00:04]} Rh4 {[%emt 0:00:02]} 50. Ke2 {[%emt 0:00:02]} Rg8 {[%emt 0:00:02]} 51. Kd2 {[%emt 0:00:02]} Rg7 {[%emt 0:00:01]} 52. Ke2 {[%emt 0:00:02]} Rg8 {[%emt 0:00:01]} 1/2-1/2

[Event "3rd FIDE WCCC Blitz G10 2019"]
[Site "Minsk"]
[Date "2019.08.18"]
[Round "9.4"]
[White "Mutina, Sofia"]
[Black "Sidorenja, Milena"]
[Result "0-1"]
[ECO "A01"]
[WhiteElo "1421"]
[BlackElo "1573"]
[Annotator "NA"]
[PlyCount "170"]
[EventDate "2019.08.18"]
[EventType "swiss"]
[EventCountry "BLR"]
[SourceTitle "playchess.com"]
[Source "ChessBase"]
[SourceQuality "1"]
[TimeControl "300+2"]

1. b3 {[%emt 0:00:00]} d5 {[%emt 0:00:00]} 2. e3 {[%emt 0:00:00]} c6 {[%emt 0:00:01]} 3. Bb2 {[%emt 0:00:01]} e6 {[%emt 0:00:02]} 4. Nf3 {[%emt 0:00:01]} f5 5. d4 Nf6 {[%emt 0:00:03]} 6. Bd3 {[%emt 0:00:01]} Bd6 {[%emt 0:00:02]} 7. O-O {[%emt 0:00:02]} O-O {[%emt 0:00:01]} 8. c4 {[%emt 0:00:01]} Nbd7 {[%emt 0:00:03]} 9. Nbd2 {[%emt 0:00:01]} Ne4 {[%emt 0:00:02]} 10. Qc2 {[%emt 0:00:11]} Rf6 {[%emt 0:00:10]} 11. Rfe1 {[%emt 0:00:04]} Rg6 {[%emt 0:00:01]} 12. Nf1 {[%emt 0:00:07]} Qf6 {[%emt 0:00:12]} 13. c5 {[%emt 0:00:20]} Bc7 {[%emt 0:00:02]} 14. Qe2 {[%emt 0:00:37]} e5 {[%emt 0:00:55]} 15. Bxe4 {[%emt 0:00:07]} fxe4 {[%emt 0:00:02]} 16. Nxe5 {[%emt 0:00:02]} Nxe5 {[%emt 0:00:02]} 17. dxe5 {[%emt 0:00:01]} Bxe5 {[%emt 0:00:01]} 18. Bxe5 {[%emt 0:00:01]} Qxe5 {[%emt 0:00:01]} 19. Ng3 {[%emt 0:00:11]} Bg4 {[%emt 0:00:04]} 20. Qd2 {[%emt 0:00:02]} Rf8 {[%emt 0:00:03]} 21. Qd4 {[%emt 0:00:06]} Qg5 {[%emt 0:00:11]} 22. Qd2 {[%emt 0:00:25]} h5 {[%emt 0:00:07]} 23. Rec1 {[%emt 0:01:38]} Rgf6 {[%emt 0:00:14]} 24. Qe1 {[%emt 0:00:25]} h4 {[%emt 0:00:06]} 25. Ne2 Bh3 {[%emt 0:00:23]} 26. g3 {[%emt 0:00:09]} hxg3 {[%emt 0:00:03]} 27. Nxg3 {[%emt 0:00:06]} Rxf2 {[%emt 0:00:24]} 28. Qxf2 {[%emt 0:00:01]} Rxf2 {[%emt 0:00:02]} 29. Kxf2 {[%emt 0:00:01]} Qf6+ {[%emt 0:00:01]} 30. Ke2 {[%emt 0:00:11]} Qf3+ {[%emt 0:00:04]} 31. Kd2 {[%emt 0:00:02]} Qf2+ {[%emt 0:00:02]} 32. Ne2 {[%emt 0:00:02]} Bg4 {[%emt 0:00:02]} 33. Re1 {[%emt 0:00:02]} Qxh2 {[%emt 0:00:02]} 34. Rac1 {[%emt 0:00:19]} Qf2 {[%emt 0:00:07]} 35. a3 d4 {[%emt 0:00:09]} 36. exd4 {[%emt 0:00:15]} e3+ {[%emt 0:00:01]} 37. Kd3 {[%emt 0:00:01]} Bf5+ {[%emt 0:00:01]} 38. Kc3 {[%emt 0:00:01]} Bg4 {[%emt 0:00:14]} 39. Kd3 {[%emt 0:00:03]} Qf5+ {[%emt 0:00:24]} 40. Kc3 {[%emt 0:00:02]} Qe4 {[%emt 0:00:12]} 41. Ng3 {[%emt 0:00:16]} Qf3 {[%emt 0:00:03]} 42. Ne2 {[%emt 0:00:03]} Bf5 {[%emt 0:00:04]} 43. Rcd1 {[%emt 0:00:07]} Qe4 {[%emt 0:00:03]} 44. Rc1 {[%emt 0:00:02]} Qd3+ {[%emt 0:00:01]} 45. Kb2 {[%emt 0:00:00]} Bg4 {[%emt 0:00:06]} 46. Nc3 {[%emt 0:00:01]} Qxd4 {[%emt 0:00:03]} 47. Rc2 {[%emt 0:00:02]} Bf5 {[%emt 0:00:03]} 48. Rce2 {[%emt 0:00:05]} Bg4 {[%emt 0:00:06]} 49. Rxe3 {[%emt 0:00:03]} Qd2+ {[%emt 0:00:02]} 50. Ka1 {[%emt 0:00:01]} Bf5 {[%emt 0:00:09]} 51. Re8+ {[%emt 0:00:05]} Kf7 {[%emt 0:00:10]} 52. R8e3 {[%emt 0:00:01]} Qc2 {[%emt 0:00:05]} 53. Re7+ {[%emt 0:00:01]} Kf8 {[%emt 0:00:03]} 54. R7e3 {[%emt 0:00:02]} Qxb3 {[%emt 0:00:06]} 55. Na2 {[%emt 0:00:09]} Qc4 {[%emt 0:00:08]} 56. Rc1 {[%emt 0:00:03]} Qd4+ {[%emt 0:00:03]} 57. Rec3 {[%emt 0:00:02]} Be6 {[%emt 0:00:02]} 58. Kb2 {[%emt 0:00:00]} a5 {[%emt 0:00:09]} 59. R1c2 {[%emt 0:00:03]} a4 {[%emt 0:00:07]} 60. Rc1 {[%emt 0:00:01]} Qd5 {[%emt 0:00:01]} 61. Rc4 {[%emt 0:00:03]} Qxc4 {[%emt 0:00:04]} 62. Rxc4 {[%emt 0:00:01]} Bxc4 {[%emt 0:00:02]} 63. Nc3 {[%emt 0:00:02]} g5 {[%emt 0:00:04]} 64. Ne4 {[%emt 0:00:08]} g4 {[%emt 0:00:04]} 65. Kc3 {[%emt 0:00:01]} Be6 {[%emt 0:00:04]} 66. Kb4 {[%emt 0:00:01]} Kf7 {[%emt 0:00:03]} 67. Kxa4 {[%emt 0:00:01]} Kg6 {[%emt 0:00:02]} 68. Ka5 {[%emt 0:00:01]} Kf5 69. Ng3+ Kf4 {[%emt 0:00:04]} 70. Nh5+ {[%emt 0:00:01]} Kf3 {[%emt 0:00:04]} 71. Kb6 {[%emt 0:00:00]} Bf7 {[%emt 0:00:01]} 72. Kxb7 {[%emt 0:00:05]} Bxh5 {[%emt 0:00:02]} 73. a4 {[%emt 0:00:00]} Bg6 {[%emt 0:00:04]} 74. a5 {[%emt 0:00:01]} Bd3 {[%emt 0:00:01]} 75. Kxc6 {[%emt 0:00:01]} g3 {[%emt 0:00:02]} 76. Kb6 {[%emt 0:00:01]} Be4 {[%emt 0:00:04]} 77. a6 {[%emt 0:00:00]} g2 {[%emt 0:00:02]} 78. c6 {[%emt 0:00:01]} g1=Q+ {[%emt 0:00:03]} 79. Kb7 {[%emt 0:00:00]} Bxc6+ {[%emt 0:00:03]} 80. Kxc6 {[%emt 0:00:02]} Qa7 {[%emt 0:00:01]} 81. Kb5 {[%emt 0:00:01]} Ke4 {[%emt 0:00:02]} 82. Ka5 {[%emt 0:00:00]} Kd5 {[%emt 0:00:01]} 83. Kb5 {[%emt 0:00:01]} Qb8+ {[%emt 0:00:03]} 84. Ka5 {[%emt 0:00:01]} Kc5 {[%emt 0:00:02]} 85. Ka4 {[%emt 0:00:01]} Qb4# {[%emt 0:00:01]} 0-1

[Event "3rd FIDE WCCC Blitz G10 2019"]
[Site "Minsk"]
[Date "2019.08.18"]
[Round "9.5"]
[White "Moskalets, Sofiia"]
[Black "Tabermakova, Leila"]
[Result "0-1"]
[ECO "B20"]
[WhiteElo "1291"]
[BlackElo "1136"]
[Annotator "NA"]
[PlyCount "124"]
[EventDate "2019.08.18"]
[EventType "swiss"]
[EventCountry "BLR"]
[SourceTitle "playchess.com"]
[Source "ChessBase"]
[SourceQuality "1"]
[TimeControl "300+2"]

1. e4 {[%emt 0:00:00]} c5 {[%emt 0:00:00]} 2. a3 {[%emt 0:00:15]} g6 {[%emt 0:00:01]} 3. b4 Bg7 {[%emt 0:00:02]} 4. c3 {[%emt 0:00:04]} cxb4 {[%emt 0:00:03]} 5. axb4 {[%emt 0:00:01]} Nc6 {[%emt 0:00:08]} 6. b5 {[%emt 0:00:16]} Na5 {[%emt 0:00:19]} 7. Bb2 {[%emt 0:01:05]} d6 {[%emt 0:00:09]} 8. Nf3 {[%emt 0:00:16]} Be6 {[%emt 0:00:06]} 9. Na3 {[%emt 0:01:10]} Nf6 {[%emt 0:00:16]} 10. Bd3 {[%emt 0:00:31]} Nb3 {[%emt 0:00:07]} 11. Rb1 {[%emt 0:00:09]} Nc5 {[%emt 0:00:01]} 12. Qe2 {[%emt 0:00:34]} Nxd3+ {[%emt 0:00:14]} 13. Qxd3 {[%emt 0:00:02]} O-O {[%emt 0:00:20]} 14. O-O {[%emt 0:00:02]} Rc8 {[%emt 0:00:03]} 15. Nd4 {[%emt 0:00:08]} Bd7 {[%emt 0:00:08]} 16. f3 {[%emt 0:00:10]} e5 {[%emt 0:00:24]} 17. Ne2 {[%emt 0:00:09]} Qb6+ {[%emt 0:00:03]} 18. Kh1 {[%emt 0:00:03]} Be6 {[%emt 0:00:07]} 19. Rfc1 {[%emt 0:00:02]} Nd7 {[%emt 0:00:08]} 20. Ng3 {[%emt 0:00:01]} Nc5 {[%emt 0:00:01]} 21. Qe2 {[%emt 0:00:03]} Nb3 {[%emt 0:00:09]} 22. Re1 {[%emt 0:00:03]} Rfd8 {[%emt 0:00:08]} 23. Rbd1 {[%emt 0:00:10]} d5 {[%emt 0:00:04]} 24. exd5 {[%emt 0:00:02]} Bxd5 {[%emt 0:00:02]} 25. Ne4 {[%emt 0:00:05]} Nc5 {[%emt 0:00:12]} 26. Nxc5 {[%emt 0:00:02]} Qxc5 {[%emt 0:00:02]} 27. d4 {[%emt 0:00:09]} exd4 {[%emt 0:00:03]} 28. cxd4 {[%emt 0:00:01]} Qb4 {[%emt 0:00:05]} 29. Rb1 Qd6 {[%emt 0:00:22]} 30. Qf2 {[%emt 0:00:05]} Be6 {[%emt 0:00:11]} 31. Nc2 {[%emt 0:00:02]} Bf5 {[%emt 0:00:02]} 32. Rbc1 {[%emt 0:00:04]} Bxc2 {[%emt 0:00:14]} 33. Rxc2 {[%emt 0:00:00]} Rxc2 {[%emt 0:00:02]} 34. Qxc2 {[%emt 0:00:01]} Qb4 {[%emt 0:00:04]} 35. Bc3 {[%emt 0:00:02]} Qxb5 {[%emt 0:00:02]} 36. Qf2 {[%emt 0:00:06]} Qc4 {[%emt 0:00:02]} 37. Ba1 {[%emt 0:00:03]} b5 {[%emt 0:00:13]} 38. Qh4 {[%emt 0:00:01]} Rd7 {[%emt 0:00:08]} 39. Re8+ {[%emt 0:00:01]} Bf8 {[%emt 0:00:05]} 40. g3 {[%emt 0:00:01]} Qc1+ {[%emt 0:00:07]} 41. Kg2 {[%emt 0:00:01]} Qxa1 {[%emt 0:00:02]} 42. Qh6 {[%emt 0:00:01]} Qa3 {[%emt 0:00:01]} 43. Ra8 Qe7 {[%emt 0:00:15]} 44. Qd2 {[%emt 0:00:10]} Rd8 {[%emt 0:00:03]} 45. Rxd8 {[%emt 0:00:02]} Qxd8 {[%emt 0:00:01]} 46. Qd3 {[%emt 0:00:01]} Qd7 {[%emt 0:00:03]} 47. d5 {[%emt 0:00:01]} a5 {[%emt 0:00:03]} 48. f4 {[%emt 0:00:04]} b4 {[%emt 0:00:03]} 49. Qb3 {[%emt 0:00:02]} a4 {[%emt 0:00:02]} 50. Qa2 {[%emt 0:00:02]} b3 {[%emt 0:00:01]} 51. Qd2 {[%emt 0:00:01]} a3 {[%emt 0:00:03]} 52. f5 {[%emt 0:00:04]} b2 {[%emt 0:00:03]} 53. Qc2 {[%emt 0:00:02]} Qxd5+ {[%emt 0:00:03]} 54. Kg1 {[%emt 0:00:02]} Qxf5 {[%emt 0:00:02]} 55. Qxf5 {[%emt 0:00:03]} gxf5 {[%emt 0:00:01]} 56. Kg2 {[%emt 0:00:01]} b1=Q {[%emt 0:00:03]} 57. Kf2 {[%emt 0:00:02]} a2 {[%emt 0:00:03]} 58. Kg2 {[%emt 0:00:02]} a1=Q {[%emt 0:00:02]} 59. Kf2 {[%emt 0:00:01]} Qc3 {[%emt 0:00:02]} 60. Kg2 {[%emt 0:00:02]} Qbb2+ {[%emt 0:00:02]} 61. Kh3 {[%emt 0:00:01]} Qg7 {[%emt 0:00:05]} 62. g4 {[%emt 0:00:02]} Qxg4# 0-1

[Event "3rd FIDE WCCC Blitz G10 2019"]
[Site "Minsk"]
[Date "2019.08.18"]
[Round "9.6"]
[White "Kuzmina, Varvara"]
[Black "Fedorova, Olesya"]
[Result "1/2-1/2"]
[ECO "E65"]
[WhiteElo "1262"]
[BlackElo "1524"]
[Annotator "NA"]
[PlyCount "86"]
[EventDate "2019.08.18"]
[EventType "swiss"]
[EventCountry "BLR"]
[SourceTitle "playchess.com"]
[Source "ChessBase"]
[SourceQuality "1"]
[TimeControl "300+2"]

1. Nf3 {[%emt 0:00:00]} Nf6 {[%emt 0:00:00]} 2. g3 {[%emt 0:00:01]} g6 {[%emt 0:00:00]} 3. Bg2 {[%emt 0:00:00]} Bg7 {[%emt 0:00:00]} 4. O-O {[%emt 0:00:02]} O-O {[%emt 0:00:01]} 5. d4 {[%emt 0:00:00]} d6 {[%emt 0:00:01]} 6. c4 {[%emt 0:00:02]} c5 {[%emt 0:00:01]} 7. Nc3 {[%emt 0:00:01]} Nc6 {[%emt 0:00:02]} 8. e3 {[%emt 0:00:04]} Bg4 {[%emt 0:00:03]} 9. dxc5 {[%emt 0:00:11]} dxc5 {[%emt 0:00:03]} 10. h3 {[%emt 0:00:15]} Bxf3 {[%emt 0:00:25]} 11. Qxf3 {[%emt 0:00:23]} Rb8 {[%emt 0:00:21]} 12. Rd1 {[%emt 0:00:10]} Qb6 {[%emt 0:00:10]} 13. Qe2 {[%emt 0:00:16]} Rbd8 {[%emt 0:00:07]} 14. Qc2 {[%emt 0:00:01]} Ne5 {[%emt 0:00:04]} 15. b3 {[%emt 0:00:06]} Rxd1+ {[%emt 0:00:03]} 16. Nxd1 {[%emt 0:00:27]} Rd8 {[%emt 0:00:06]} 17. Bb2 {[%emt 0:00:21]} Nd3 {[%emt 0:00:15]} 18. Nc3 {[%emt 0:00:03]} Nxb2 {[%emt 0:00:07]} 19. Qxb2 {[%emt 0:00:03]} Rd3 {[%emt 0:00:46]} 20. Qc2 {[%emt 0:00:06]} Qd8 {[%emt 0:00:41]} 21. Rd1 {[%emt 0:00:11]} Rxd1+ {[%emt 0:00:04]} 22. Qxd1 {[%emt 0:00:06]} Qxd1+ 23. Nxd1 {[%emt 0:00:01]} b6 {[%emt 0:00:04]} 24. Nc3 {[%emt 0:00:14]} e6 {[%emt 0:00:01]} 25. Nb5 {[%emt 0:00:11]} a5 {[%emt 0:00:01]} 26. Nc7 {[%emt 0:00:07]} Nd7 {[%emt 0:00:35]} 27. Na8 {[%emt 0:00:05]} Bf6 {[%emt 0:00:15]} 28. Nc7 {[%emt 0:00:33]} Ne5 {[%emt 0:00:09]} 29. f4 {[%emt 0:00:11]} Nd3 {[%emt 0:00:02]} 30. a3 {[%emt 0:00:42]} Nc1 {[%emt 0:00:25]} 31. Kf2 {[%emt 0:00:17]} Nxb3 {[%emt 0:00:04]} 32. Ke2 {[%emt 0:00:05]} a4 {[%emt 0:00:07]} 33. Bc6 {[%emt 0:00:08]} Na5 {[%emt 0:00:07]} 34. Bb5 {[%emt 0:00:07]} Bd8 {[%emt 0:00:19]} 35. Ne8 {[%emt 0:00:09]} Kf8 {[%emt 0:00:11]} 36. Kd3 {[%emt 0:00:03]} Ke7 {[%emt 0:00:02]} 37. Bxa4 {[%emt 0:00:06]} h5 {[%emt 0:00:12]} 38. Bb5 {[%emt 0:00:04]} Nb7 {[%emt 0:00:04]} 39. a4 {[%emt 0:00:03]} Na5 {[%emt 0:00:01]} 40. e4 {[%emt 0:00:04]} Nb3 {[%emt 0:00:08]} 41. e5 {[%emt 0:00:03]} Nd4 {[%emt 0:00:01]} 42. Nd6 {[%emt 0:00:02]} Nxb5 {[%emt 0:00:08]} 43. Nxb5 {[%emt 0:00:10]} f6 {[%emt 0:00:02]} 1/2-1/2